bitfinex-derivatives/quotes_ETHF0:USTF0_20250213
["timestamp","ask_amount","ask_price","bid_price","bid_amount"]
[1739478509504,0.5512,2657.1,2657.0,0.75262]
[1739478509703,0.5512,2657.1,2657.0,7.30522599]
[1739478509911,1.30379,2657.1,2657.0,3.96042]
[1739478510205,1.30379,2657.1,2657.0,44.76042]
[1739478510415,0.5512,2657.1,2657.0,44.76042]
[1739478511203,0.5512,2657.1,2657.0,3.96042]
[1739478512506,0.5512,2657.1,2657.0,7.30522599]
[1739478513010,0.5512,2657.1,2657.0,7.89292599]
[1739478513206,0.00565153,2657.3,2657.2,0.75256]
[1739478513606,0.75818153,2657.3,2657.2,0.75256]
[1739478514099,0.00565153,2657.3,2657.2,0.75256]
[1739478514509,0.75818153,2657.3,2657.2,0.75256]
[1739478514715,0.00565153,2657.3,2657.2,0.75256]
[1739478514909,0.75818153,2657.3,2657.2,0.75256]
[1739478515802,0.00565153,2657.3,2657.1,1.678]
[1739478516002,0.5677,2657.2,2657.0,3.2078]
[1739478516203,0.5438,2657.1,2657.0,3.96042]
[1739478516403,0.00565153,2657.3,2657.0,7.87812561]
[1739478516603,0.00565153,2657.3,2657.2,0.75256]
[1739478517412,0.75818153,2657.3,2657.2,0.75256]
[1739478517714,0.75257,2657.2,2657.1,0.75258]
[1739478518011,0.75820153,2657.3,2657.1,0.75256]
[1739478518313,0.00565153,2657.3,2657.2,0.75256]
[1739478519002,0.75818153,2657.3,2657.2,0.75256]
[1739478519403,0.00565153,2657.3,2657.0,6.55260599]
[1739478519711,0.75819153,2657.3,2657.2,0.75256]
[1739478520409,0.75258,2657.2,2657.1,0.75258]
[1739478520707,0.75258,2657.2,2657.0,6.55260599]
[1739478520708,0.75259,2657.1,2657.0,3.2078]
[1739478521008,0.75259,2657.1,2657.0,3.96042]
[1739478521308,0.75259,2657.1,2657.0,3.2078]
[1739478523911,1.88149,2657.1,2656.7,3.2078]
[1739478524109,0.75267,2656.8,2656.7,3.2078]
[1739478525104,0.75267,2656.8,2656.7,3.9605]
[1739478526311,0.75267,2656.8,2656.7,3.2078]
[1739478526708,0.75267,2656.8,2656.7,3.9605]
[1739478527009,0.75267,2656.8,2656.7,3.2078]
[1739478528519,0.75276,2656.5,2656.4,3.7643]
[1739478529612,0.75276,2656.5,2656.4,3.2078]
[1739478530115,1.30516,2656.6,2656.5,0.75276]
[1739478530710,0.5524,2656.6,2656.5,0.75276]
[1739478530910,0.5524,2656.6,2656.5,1.34126]
[1739478531608,1.30513,2656.6,2656.5,1.34126]
[1739478532108,1.30513,2656.6,2656.5,0.5885]
[1739478532310,1.30513,2656.6,2656.5,0.75276]
[1739478534816,0.5524,2656.6,2656.4,6.55260599]
[1739478535005,0.75276,2656.5,2656.4,3.2078]
[1739478535817,0.75276,2656.5,2656.4,3.96058]
[1739478536417,1.30514,2656.6,2656.5,0.75276]
[1739478537517,0.5524,2656.6,2656.4,3.2078]
[1739478537717,0.75276,2656.5,2656.4,3.96058]
[1739478538214,0.75276,2656.5,2656.4,3.2078]
[1739478540015,1.88799,2656.4,2656.3,0.00565153]
[1739478543409,1.88799,2656.4,2655.9,1.177]
[1739478543410,0.7529,2656.0,2655.9,1.177]
[1739478543819,3.7713,2656.1,2655.6,4.90151832]
[1739478544018,0.75298,2655.7,2655.6,4.90151832]
[1739478544610,3.03094,2655.9,2655.6,4.90151832]
[1739478544611,0.57595153,2655.9,2655.6,4.90151832]
[1739478545120,1.32888153,2655.9,2655.8,3.96076]
[1739478545816,1.32888153,2655.9,2655.8,3.2078]
[1739478546221,1.32888153,2655.9,2655.8,3.96076]
[1739478547715,0.75858153,2655.9,2655.8,3.96076]
[1739478548712,0.75858153,2655.9,2655.8,3.2078]
[1739478549511,0.75858153,2655.9,2655.8,3.7659]
[1739478550117,0.75858153,2655.9,2655.8,4.51886]
[1739478550815,0.00565153,2655.9,2655.8,4.51886]
[1739478551021,0.75858153,2655.9,2655.8,4.51886]
[1739478551217,0.00565153,2655.9,2655.8,4.51886]
[1739478553017,0.00565153,2655.9,2655.8,9.54066599]
[1739478553316,0.00565153,2655.9,2655.5,0.03564873]
[1739478553521,0.75299,2655.7,2655.6,0.5742]
[1739478553716,1.32517,2655.8,2655.7,0.75298]
[1739478553921,0.00565153,2655.9,2655.7,3.96078]
[1739478554218,0.00565153,2655.9,2655.7,3.2078]
[1739478554415,0.75860153,2655.9,2655.8,1.30076]
[1739478554620,0.00565153,2655.9,2655.8,1.30076]
[1739478555018,0.75858153,2655.9,2655.8,1.30076]
[1739478556416,0.00565153,2655.9,2655.8,1.30076]
[1739478557018,0.00565153,2655.9,2655.8,0.5478]
[1739478557322,0.75858153,2655.9,2655.8,1.30076]
[1739478557522,0.75858153,2655.9,2655.8,0.5478]
[1739478558122,0.75858153,2655.9,2655.8,1.30076]
[1739478558623,0.75858153,2655.9,2655.8,0.5478]
[1739478559416,0.75296,2655.8,2655.7,3.2078]
[1739478559621,0.00565153,2655.9,2655.8,0.75296]
[1739478563530,0.00565153,2655.9,2655.8,4.67145482]
[1739478563731,0.00565153,2655.9,2655.8,4.67147106]
[1739478564034,0.00565153,2655.9,2655.8,4.66529296]
[1739478564226,0.00565153,2655.9,2655.8,5.23902524]
[1739478567834,0.00565153,2655.9,2655.8,5.23953925]
[1739478571233,0.5531,2656.7,2655.8,5.23953925]
[1739478571435,1.29943,2656.6,2656.5,3.96053]
[1739478572237,0.5467,2656.6,2656.5,3.96053]
[1739478574134,0.58485153,2656.8,2656.7,0.7527]
[1739478574340,1.16945153,2656.8,2656.7,0.7527]
[1739478575346,1.92212153,2656.8,2656.7,0.7527]
[1739478576040,1.16945153,2656.8,2656.7,0.7527]
[1739478576842,1.92212153,2656.8,2656.7,0.7527]
[1739478577445,1.16945153,2656.8,2656.7,0.7527]
[1739478577645,1.92212153,2656.8,2656.7,0.7527]
[1739478578745,1.16945153,2656.8,2656.7,0.7527]
[1739478579748,1.92212153,2656.8,2656.7,0.7527]
[1739478581246,1.16945153,2656.8,2656.7,0.7527]
[1739478581451,1.92212153,2656.8,2656.7,0.7527]
[1739478582145,1.16945153,2656.8,2656.7,0.7527]
[1739478582549,1.92212153,2656.8,2656.7,0.7527]
[1739478583050,1.16945153,2656.8,2656.5,3.2078]
[1739478583250,0.75273,2656.6,2656.5,3.2078]
[1739478583851,0.75273,2656.6,2656.5,3.96056]
[1739478584053,0.75273,2656.6,2656.5,3.2078]
[1739478584252,0.75273,2656.6,2656.5,3.96056]
[1739478585557,0.75273,2656.6,2656.5,3.2078]
[1739478586956,0.75273,2656.6,2656.5,3.96056]
[1739478590063,1.16945153,2656.8,2656.5,3.2078]
[1739478590465,1.92216153,2656.8,2656.7,0.7527]
[1739478590664,1.16945153,2656.8,2656.5,3.2078]
[1739478590860,0.75273,2656.7,2656.6,41.55271]
[1739478591263,0.75273,2656.7,2656.6,0.75271]
[1739478591464,0.75273,2656.6,2656.5,3.96053]
[1739478591665,0.75273,2656.6,2656.5,3.2078]
[1739478592162,0.75273,2656.6,2656.2,3.2078]
[1739478592163,1.88185,2656.6,2656.2,3.2078]
[1739478592358,0.75281,2656.3,2656.2,3.2078]
[1739478593167,1.30901,2656.3,2656.2,3.2078]
[1739478595371,1.30901,2656.3,2656.2,3.96064]
[1739478596664,1.30901,2656.3,2656.2,3.2078]
[1739478597864,1.30901,2656.3,2656.2,3.96064]
[1739478599060,0.75281,2656.4,2656.3,0.75278]
[1739478599264,0.75281,2656.4,2656.3,1.90858]
[1739478600366,0.75281,2656.4,2656.3,1.1558]
[1739478600668,8.22860599,2656.5,2655.6,3.2078]
[1739478600868,0.75296,2655.8,2655.7,0.5563]
[1739478601073,0.75304,2655.5,2655.4,0.00565153]
[1739478601772,1.8639,2655.7,2655.4,0.00565153]
[1739478601974,0.5788,2656.0,2655.6,3.2078]
[1739478601975,1.676,2656.0,2655.6,3.2078]
[1739478602272,0.75297,2655.8,2655.7,1.88417]
[1739478602468,0.75294,2655.9,2655.8,0.75296]
[1739478602667,1.1109,2656.0,2655.7,1.1312]
[1739478602870,0.75298,2655.7,2655.6,3.2078]
[1739478603069,0.75298,2655.7,2655.6,3.96081]
[1739478603473,0.75298,2655.8,2655.7,0.75298]
[1739478603667,0.75295,2655.9,2655.6,3.2078]
[1739478603866,1.1109,2656.0,2655.6,3.2078]
[1739478604073,0.75295,2655.9,2655.7,0.75297]
[1739478604269,1.1109,2656.0,2655.7,0.75297]
[1739478604568,0.75296,2655.8,2655.6,3.2078]
[1739478604774,1.1109,2656.0,2655.6,3.96079]
[1739478605071,0.75298,2655.8,2655.6,3.9608]
[1739478605274,1.1109,2656.0,2655.6,3.9608]
[1739478605569,0.75298,2655.7,2655.6,3.2078]
[1739478608172,3.34480599,2655.9,2655.4,1.09525153]
[1739478608375,0.75304,2655.5,2655.4,1.09525153]
[1739478608767,1.33464,2655.5,2655.4,1.09525153]
[1739478610179,1.33464,2655.5,2655.4,1.84832153]
[1739478610472,3.2078,2656.0,2655.4,1.09525153]
[1739478610664,1.30004,2655.9,2655.5,3.2078]
[1739478610868,0.5471,2655.9,2655.5,3.2078]
[1739478611070,0.75301,2655.7,2655.6,0.75297]
[1739478612871,0.75301,2655.6,2655.5,3.96082]
[1739478613272,0.75301,2655.6,2655.5,3.2078]
[1739478614371,0.75304,2655.5,2655.4,1.09525153]
[1739478614573,0.75304,2655.5,2655.4,1.84832153]
[1739478614973,0.5471,2655.9,2655.4,1.09525153]
[1739478614974,2.42947,2655.9,2655.4,1.09525153]
[1739478615171,3.2078,2655.6,2655.4,0.00565153]
[1739478615382,2.8645,2655.5,2654.9,3.7977]
[1739478615680,0.75317,2655.1,2655.0,0.75317]
[1739478615973,0.75317,2655.1,2655.0,1.30207]
[1739478616171,0.75317,2655.1,2655.0,0.5489]
[1739478622079,0.75321,2654.9,2654.8,0.00565153]
[1739478622675,1.32291,2654.9,2654.8,0.00565153]
[1739478644897,0.75321,2654.9,2654.8,0.00565153]
[1739478648001,0.75321,2654.9,2654.8,0.55175153]
[1739478650797,0.75321,2654.9,2654.8,1.30499153]
[1739478651599,0.75318,2655.1,2654.8,3.75955153]
[1739478651801,0.75317,2655.2,2655.1,0.75313]
[1739478651997,0.75878153,2655.3,2655.2,0.75313]
[1739478652305,0.75878153,2655.3,2655.2,1.33523]
[1739478653910,0.75878153,2655.3,2655.2,0.5821]
[1739478657002,0.75878153,2655.3,2655.2,1.33523]
[1739478657704,0.75878153,2655.3,2655.2,0.5821]
[1739478659706,2.25752369,2655.3,2655.2,0.5821]
[1739478660401,2.25752369,2655.3,2655.0,0.75316]
[1739478660402,0.75321,2654.9,2654.8,0.00565153]
[1739478660610,2.25195216,2654.9,2654.8,0.00565153]
[1739478661197,0.75321,2654.9,2654.8,0.75889153]
[1739478661401,0.75321,2654.9,2654.8,0.00565153]
[1739478661599,0.5792,2655.2,2655.1,0.75315]
[1739478661905,0.75315,2655.2,2655.1,3.2078]
[1739478662702,0.75315,2655.2,2655.1,3.8047]
[1739478663508,0.75877153,2655.3,2655.2,0.75313]
[1739478663807,0.75313,2655.2,2655.1,4.55783]
[1739478664605,0.00565153,2655.3,2655.1,3.8047]
[1739478664810,0.75876153,2655.3,2655.2,0.75313]
[1739478665310,0.00565153,2655.3,2655.1,3.8047]
[1739478665511,0.75877153,2655.3,2655.2,0.75313]
[1739478666009,0.00565153,2655.3,2655.2,0.75313]
[1739478666310,0.00565153,2655.3,2655.1,3.8047]
[1739478666607,0.75313,2655.2,2655.1,3.8047]
[1739478666809,0.75313,2655.2,2655.1,4.55785]
[1739478667507,0.75313,2655.2,2655.1,3.2078]
[1739478667719,0.75315,2655.1,2655.0,1.1567]
[1739478668106,0.75321,2654.9,2654.8,0.00565153]
[1739478670914,6.75321,2654.9,2654.8,1.53e-06]
[1739478671209,6.81475683,2654.9,2654.8,1.53e-06]
[1739478671915,0.81475683,2654.9,2654.8,1.53e-06]
[1739478673711,0.75321,2654.9,2654.8,1.53e-06]
[1739478678512,0.75321,2654.9,2654.8,3.20780153]
[1739478678918,0.75321,2654.9,2654.8,3.96104153]
[1739478680213,0.75321,2654.9,2654.8,3.20780153]
[1739478681718,0.75321,2654.9,2654.8,1.53e-06]
[1739478682413,0.81475648,2654.9,2654.8,1.53e-06]
[1739478682817,0.75321,2654.9,2654.8,1.53e-06]
[1739478683016,0.81476004,2654.9,2654.8,1.53e-06]
[1739478684121,6.81476004,2654.9,2654.8,1.53e-06]
[1739478684719,0.81476004,2654.9,2654.8,1.53e-06]
[1739478684915,0.75321,2654.9,2654.8,1.53e-06]
[1739478685122,2.42821,2654.9,2654.8,1.53e-06]
[1739478691820,6.90548735,2655.1,2654.8,0.75324153]
[1739478692022,1.1555,2655.2,2654.8,1.53e-06]
[1739478692222,0.75321,2654.9,2654.8,1.53e-06]
[1739478696526,0.81475401,2654.9,2654.8,1.53e-06]
[1739478698329,0.75321,2654.9,2654.8,1.53e-06]
[1739478700528,0.75321,2654.9,2654.8,0.57580153]
[1739478701237,0.75321,2654.9,2654.8,1.53e-06]
[1739478701927,0.75321,2654.9,2654.8,0.75324153]
[1739478702235,0.75321,2654.9,2654.8,1.53e-06]
[1739478707531,0.75321,2654.9,2654.8,0.75324153]
[1739478708231,0.75319,2655.1,2655.0,0.75316]
[1739478708629,0.75315,2655.1,2655.0,0.75316]
[1739478709235,0.75315,2655.1,2655.0,0.5675]
[1739478709935,0.75315,2655.1,2655.0,1.32068]
[1739478710834,0.75315,2655.1,2655.0,0.5675]
[1739478713028,0.75315,2655.1,2655.0,1.32068]
[1739478713233,0.75315,2655.2,2655.1,0.75313]
[1739478713435,0.75315,2655.2,2655.1,0.5549]
[1739478719443,0.75315,2655.2,2655.1,1.30805]
[1739478719643,0.00565153,2655.3,2655.1,0.5549]
[1739478719939,0.75878153,2655.3,2655.2,0.75313]
[1739478720643,0.00565153,2655.3,2655.1,0.5549]
[1739478720944,0.75313,2655.2,2655.1,1.30803]
[1739478721942,0.00565153,2655.3,2655.2,0.75313]
[1739478722146,0.6003,2655.9,2655.1,5.57747735]
[1739478722343,0.6003,2655.9,2655.8,0.75296]
[1739478722543,1.35323,2655.9,2655.8,0.75296]
[1739478722739,0.5996,2656.0,2655.8,1.1911]
[1739478722940,0.75292,2656.0,2655.9,0.75293]
[1739478723149,0.75293,2655.9,2655.8,1.94403]
[1739478723350,0.75293,2655.9,2655.8,1.1911]
[1739478723854,0.75293,2655.9,2655.8,1.94406]
[1739478724553,0.75293,2655.9,2655.8,1.1911]
[1739478725753,0.60595153,2656.2,2655.8,4.3989]
[1739478725954,0.75292,2656.0,2655.9,0.75292]
[1739478726154,0.75293,2655.9,2655.8,5.15185]
[1739478726759,0.75293,2655.9,2655.8,4.3989]
[1739478727353,0.75293,2655.9,2655.8,5.15186]
[1739478728059,0.00565153,2656.2,2656.1,0.75287]
[1739478728248,0.00565153,2656.2,2656.1,3.96067]
[1739478728760,0.00565153,2656.2,2656.1,4.55427]
[1739478729251,0.75849153,2656.2,2656.1,4.55427]
[1739478729453,0.00565153,2656.2,2656.1,4.55427]
[1739478730857,0.75849153,2656.2,2656.1,4.55427]
[1739478731362,0.00565153,2656.2,2656.1,4.55427]
[1739478732263,0.75849153,2656.2,2656.1,4.55427]
[1739478732456,0.00565153,2656.2,2656.1,4.55427]
[1739478734155,0.75849153,2656.2,2656.1,4.55427]
[1739478734957,0.00565153,2656.2,2656.1,4.55427]
[1739478751477,0.75849153,2656.2,2656.1,3.96067]
[1739478751668,0.75849153,2656.2,2656.1,5.63267]
[1739478751868,0.00565153,2656.2,2656.1,5.63267]
[1739478752676,0.00565153,2656.2,2656.1,3.2078]
[1739478752972,0.75849153,2656.2,2656.1,3.2078]
[1739478753273,0.75849153,2656.2,2656.1,3.96067]
[1739478755675,0.00565153,2656.2,2656.1,3.96067]
[1739478757774,0.75849153,2656.2,2656.1,3.96067]
[1739478757975,0.75849153,2656.2,2656.1,3.2078]
[1739478759277,0.75849153,2656.2,2656.1,0.75287]
[1739478759478,0.75292,2656.0,2655.9,0.7529]
[1739478760183,1.30638,2656.1,2656.0,0.7529]
[1739478760682,0.5535,2656.1,2656.0,0.7529]
[1739478761978,0.7529,2656.0,2655.4,0.75304]
[1739478762173,0.75306,2655.5,2655.4,0.75304]
[1739478762781,0.75306,2655.5,2655.4,3.96084]
[1739478762976,0.75306,2655.5,2655.4,3.2078]
[1739478763281,0.75313,2655.2,2655.1,5.63293]
[1739478763673,0.75315,2655.1,2655.0,5.50355815]
[1739478764080,0.5728,2655.4,2655.0,4.90295815]
[1739478764381,0.5728,2655.4,2655.2,0.7531]
[1739478764382,0.7531,2655.3,2655.2,0.7531]
[1739478764874,0.5728,2655.4,2655.3,0.7531]
[1739478765081,0.75307,2655.4,2655.3,0.7531]
[1739478765483,3.7599,2655.6,2655.0,0.5855]
[1739478765682,3.7599,2655.6,2655.3,0.75309]
[1739478765875,0.5521,2655.6,2655.0,0.5855]
[1739478766083,0.75308,2655.4,2655.3,0.75308]
[1739478767879,0.5521,2655.6,2655.1,3.2078]
[1739478767880,0.75304,2655.5,2655.4,0.75306]
[1739478769588,0.5521,2655.6,2655.2,1.1546]
[1739478769786,0.75306,2655.5,2655.4,0.75305]
[1739478771283,0.5521,2655.6,2655.5,0.75304]
[1739478771589,1.33065,2655.9,2655.8,0.75296]
[1739478771789,0.75295,2655.9,2655.8,0.75296]
[1739478772286,0.75296,2655.8,2655.7,1.34266]
[1739478773291,0.5777,2656.1,2655.7,0.5897]
[1739478773496,0.75296,2655.9,2655.8,3.96072]
[1739478773886,0.75296,2655.9,2655.8,0.75292]
[1739478774294,0.5777,2656.1,2655.7,0.5897]
[1739478774494,0.5777,2656.1,2655.7,1.34268]
[1739478774495,0.75296,2655.8,2655.7,1.34268]
[1739478775787,0.75296,2655.8,2655.7,0.5897]
[1739478775987,0.75296,2655.8,2655.7,1.34268]
[1739478779195,0.75296,2655.8,2655.7,1.89108]
[1739478780795,0.75296,2655.8,2655.7,1.1381]
[1739478781290,0.5777,2656.1,2655.7,1.1381]
[1739478781596,0.75296,2655.8,2655.7,1.89108]
[1739478781993,1.88776153,2656.2,2655.7,1.1381]
[1739478782293,0.00565153,2656.2,2655.8,3.2078]
[1739478782492,0.75293,2656.0,2655.9,0.75289]
[1739478783099,1.88781153,2656.2,2655.8,3.2078]
[1739478783296,0.75293,2655.9,2655.8,3.96073]
[1739478784100,0.00565153,2656.2,2655.6,0.576]
[1739478784397,0.75298,2655.7,2655.6,1.32901]
[1739478785096,0.75298,2655.7,2655.6,0.576]
[1739478785292,0.75298,2655.7,2655.6,1.32901]
[1739478785597,0.75298,2655.7,2655.6,0.576]
[1739478785797,0.75298,2655.7,2655.6,1.32901]
[1739478786797,0.75298,2655.8,2655.7,0.75296]
[1739478786994,0.75298,2655.8,2655.7,3.96076]
[1739478787693,0.75298,2655.8,2655.7,3.2078]
[1739478787898,0.75298,2655.7,2655.6,1.32901]
[1739478788694,0.583,2655.9,2655.6,0.576]
[1739478788898,0.75298,2655.8,2655.7,3.96076]
[1739478789093,0.583,2655.9,2655.7,3.2078]
[1739478789298,1.33595,2655.9,2655.8,0.75296]
[1739478791397,0.75289,2656.1,2656.0,0.75287]
[1739478792095,0.75289,2656.1,2656.0,1.33037]
[1739478792294,0.00565153,2656.2,2656.1,0.75287]
[1739478792801,0.75849153,2656.2,2656.1,0.75287]
[1739478793100,0.00565153,2656.2,2656.1,0.75287]
[1739478808504,0.00565153,2656.2,2656.1,1.04828835]
[1739478808915,1.1659,2656.9,2656.1,0.29541835]
[1739478809104,1.1659,2656.9,2656.6,3.2078]
[1739478809307,1.1659,2656.9,2656.7,1.32478]
[1739478809308,0.75267,2656.8,2656.7,1.32478]
[1739478809509,0.5657,2656.9,2656.7,0.5721]
[1739478809808,1.31836,2656.9,2656.8,0.75267]
[1739478810601,0.5971,2657.0,2656.9,0.75264]
[1739478810805,0.00565,2657.1,2657.0,0.75261]
[1739478811116,0.00565,2657.1,2657.0,2.42261]
[1739478823325,0.75824,2657.1,2657.0,2.42261]
[1739478823521,0.00565,2657.1,2657.0,2.42261]
[1739478833536,0.75824,2657.1,2657.0,2.42261]
[1739478833732,0.00565,2657.1,2656.9,0.5865]
[1739478833932,0.7527,2656.7,2656.6,0.00565153]
[1739478834244,3.2078,2656.7,2655.7,3.2078]
[1739478834440,8.43838735,2656.4,2655.7,4.8768]
[1739478834635,1.1021,2656.3,2656.0,3.2078]
[1739478834943,0.75287,2656.1,2656.0,3.2078]
[1739478838140,0.75287,2656.1,2656.0,3.9607]
[1739478838441,1.1021,2656.3,2656.0,3.96068]
[1739478838642,0.75287,2656.1,2656.0,3.96068]
[1739478838844,1.1021,2656.3,2656.0,3.2078]
[1739478839142,0.75287,2656.1,2656.0,3.2078]
[1739478839951,0.75293,2655.9,2655.8,0.00565153]
[1739478841344,0.5813,2656.0,2655.8,0.00565153]
[1739478841649,0.75293,2655.9,2655.8,0.00565153]
[1739478842047,0.75293,2655.9,2655.8,0.75860153]
[1739478842452,0.75293,2655.9,2655.8,0.00565153]
[1739478843249,1.88243,2655.8,2655.1,3.96093]
[1739478843547,0.75313,2655.2,2655.1,3.96093]
[1739478843747,0.75313,2655.2,2655.1,3.2078]
[1739478844442,0.75312,2655.2,2655.1,3.2078]
[1739478845351,0.75312,2655.2,2655.1,3.96095]
[1739478845555,1.1267,2655.3,2655.1,3.2078]
[1739478845851,0.57415153,2655.4,2655.1,3.2078]
[1739478846043,0.75312,2655.3,2655.2,0.75311]
[1739478846238,0.57415153,2655.4,2655.1,3.2078]
[1739478846750,1.32724153,2655.4,2655.3,0.7531]
[1739478847252,0.75313,2655.2,2655.1,3.96092]
[1739478847749,0.57415153,2655.4,2655.1,3.96092]
[1739478848052,0.00565153,2655.4,2655.3,0.7531]
[1739478848255,1.53e-06,2655.4,2655.3,0.7531]
[1739478848852,1.53e-06,2655.4,2655.3,41.5531]
[1739478850852,1.53e-06,2655.4,2655.3,47.5531]
[1739478851646,1.53e-06,2655.4,2655.3,41.5531]
[1739478853647,1.53e-06,2655.4,2655.3,47.5531]
[1739478854655,1.53e-06,2655.4,2655.3,41.5531]
[1739478859152,1.53e-06,2655.4,2655.3,0.7531]
[1739478859354,1.53e-06,2655.4,2655.1,4.8768]
[1739478859555,0.75313,2655.2,2655.1,5.62995]
[1739478859958,0.75313,2655.2,2655.1,4.8768]
[1739478860665,0.75313,2655.2,2655.1,3.2078]
[1739478861558,1.53e-06,2655.4,2655.1,3.2078]
[1739478861855,0.75313,2655.2,2655.1,3.2078]
[1739478862661,0.75313,2655.2,2655.1,3.96095]
[1739478862855,0.75311,2655.3,2655.1,3.96095]
[1739478863056,1.53e-06,2655.4,2655.1,3.96095]
[1739478863259,0.75313,2655.2,2655.1,3.2078]
[1739478863466,0.75312,2655.3,2655.1,3.96094]
[1739478863859,1.53e-06,2655.4,2655.1,3.2078]
[1739478864059,0.75313,2655.2,2655.1,3.96095]
[1739478864359,0.75312,2655.3,2655.1,3.96095]
[1739478864865,0.75312,2655.3,2655.2,0.75313]
[1739478865365,0.75313,2655.2,2655.1,3.96094]
[1739478865766,1.53e-06,2655.4,2655.1,3.2078]
[1739478865973,0.75312,2655.3,2655.2,0.75311]
[1739478866361,1.53e-06,2655.4,2655.1,3.2078]
[1739478866561,0.75313,2655.2,2655.1,3.96095]
[1739478866761,0.75313,2655.2,2655.1,3.2078]
[1739478867165,0.75313,2655.2,2655.1,3.96095]
[1739478869070,0.75313,2655.2,2655.1,3.2078]
[1739478870265,0.75318,2655.0,2654.9,0.00565153]
[1739478870972,1.31258,2655.0,2654.9,0.00565153]
[1739478872561,1.31258,2655.0,2654.2,0.03352017]
[1739478872562,0.75341,2654.2,2654.1,5.63022]
[1739478873065,0.7534,2654.3,2654.2,0.75338]
[1739478873475,0.75338,2654.4,2654.3,0.75336]
[1739478873673,0.75338,2654.4,2654.1,4.8768]
[1739478873674,0.7534,2654.3,2654.2,0.75339]
[1739478874574,0.75341,2654.3,2654.2,0.75338]
[1739478875675,1.1805,2654.5,2654.1,4.8768]
[1739478875873,0.75337,2654.4,2654.3,0.75337]
[1739478876064,0.75339,2654.3,2654.2,0.75339]
[1739478878170,0.75337,2654.4,2654.3,0.75337]
[1739478878369,0.7534,2654.3,2654.2,0.7534]
[1739478879072,1.1805,2654.5,2654.1,4.8768]
[1739478879272,0.75339,2654.3,2654.2,0.75339]
[1739478879576,0.75338,2654.3,2654.2,1.3038]
[1739478880673,0.75329,2654.7,2654.6,0.75328]
[1739478880881,3.2078,2655.0,2654.4,3.2078]
[1739478881073,3.2078,2655.0,2654.5,1.669]
[1739478881379,3.2078,2655.0,2654.5,2.42231]
[1739478881380,0.7533,2654.6,2654.5,2.42231]
[1739478882275,0.5621,2654.8,2654.5,1.669]
[1739478882574,0.75329,2654.7,2654.6,0.75329]
[1739478882979,0.7533,2654.6,2654.5,1.669]
[1739478883380,0.7533,2654.6,2654.5,2.42232]
[1739478883587,0.5621,2654.8,2654.5,1.669]
[1739478883878,0.5621,2654.8,2654.7,0.75327]
[1739478884279,1.31534,2654.8,2654.7,0.75327]
[1739478884667,1.32192,2654.9,2654.8,0.75324]
[1739478885172,0.75326,2654.8,2654.7,0.75325]
[1739478885681,3.2078,2655.0,2654.6,0.5735]
[1739478885981,3.2078,2655.0,2654.7,0.5652]
[1739478886180,0.75321,2654.9,2654.8,1.31423]
[1739478886382,0.75321,2654.9,2654.8,0.561]
[1739478886580,0.75327,2654.8,2654.7,0.75327]
[1739478887986,0.75327,2654.7,2654.6,1.32678]
[1739478889581,5.09078,2655.0,2654.6,0.5735]
[1739478889883,0.75324,2654.9,2654.8,0.75321]
[1739478890889,0.75327,2654.8,2654.7,0.75324]
[1739478891476,0.75327,2654.7,2654.6,1.32678]
[1739478891986,0.75332,2654.5,2654.4,3.96114]
[1739478892186,0.75332,2654.5,2654.4,3.2078]
[1739478892492,0.75332,2654.5,2654.4,3.96115]
[1739478893085,0.75339,2654.4,2654.3,0.75335]
[1739478893789,5.23182735,2654.6,2654.1,6.6519]
[1739478894090,0.75341,2654.2,2654.1,7.40531]
[1739478894980,0.7534,2654.3,2654.2,0.75337]
[1739478896390,0.75337,2654.4,2654.3,0.75335]
[1739478897886,0.7534,2654.3,2654.2,0.75337]
[1739478898192,0.75338,2654.4,2654.3,0.75336]
[1739478898689,5.23184735,2654.6,2654.1,6.6519]
[1739478898989,0.7534,2654.3,2654.2,0.75338]
[1739478899789,0.7534,2654.3,2654.2,0.75337]
[1739478900388,0.75335,2654.5,2654.4,0.75333]
[1739478900590,5.091,2654.7,2654.3,0.75335]
[1739478900591,0.75338,2654.4,2654.3,0.75335]
[1739478900992,3.2078,2654.7,2654.2,0.7534]
[1739478900993,0.75341,2654.3,2654.2,0.7534]
[1739478902095,5.09101,2654.7,2654.1,6.0689]
[1739478902287,0.75336,2654.5,2654.4,0.75333]
[1739478903292,0.75327,2654.7,2654.6,0.7533]
[1739478903894,0.75332,2654.6,2654.5,0.7533]
[1739478904084,0.75336,2654.5,2654.4,0.75334]
[1739478904290,0.75338,2654.4,2654.3,0.75336]
[1739478904593,1.88319,2654.7,2654.1,6.0689]
[1739478904794,0.75339,2654.4,2654.3,0.75336]
[1739478905791,0.7534,2654.3,2654.2,0.75338]
[1739478908089,0.75337,2654.4,2654.3,0.75335]
[1739478908495,0.75337,2654.4,2654.1,4.4009]
[1739478908496,0.75335,2654.5,2654.4,0.75333]
[1739478908687,0.75331,2654.6,2654.5,0.75329]
[1739478908993,0.75325,2654.8,2654.7,0.75324]
[1739478909887,0.75332,2654.6,2654.5,0.7533]
[1739478912098,0.75332,2654.5,2654.4,3.2078]
[1739478912496,0.75338,2654.3,2654.2,0.75339]
[1739478912795,0.75341,2654.2,2654.1,1.1931]
[1739478913194,0.75341,2654.2,2654.1,1.94654]
[1739478913493,0.7534,2654.3,2654.2,0.75338]
[1739478913699,0.75338,2654.4,2654.3,0.75335]
[1739478914900,0.75335,2654.5,2654.4,0.75333]
[1739478915089,3.34857735,2654.9,2654.3,3.2078]
[1739478915397,0.75327,2654.8,2654.7,0.75325]
[1739478915695,1.1569,2654.9,2654.3,6.55637735]
[1739478915899,0.75335,2654.4,2654.3,3.96116]
[1739478916095,3.2078,2654.7,2654.1,1.1931]
[1739478916295,0.75341,2654.3,2654.2,0.75339]